[Event "FIDE World Senior-50 CC 2023"]
[Site "Terrasini"]
[Date "2023.11.03"]
[Round "9.3"]
[White "Morovic Fernandez, Ivan"]
[Black "Novik, Maxim"]
[Result "1/2-1/2"]
[ECO "E92"]
[WhiteElo "2488"]
[BlackElo "2375"]
[Annotator "RC"]
[PlyCount "54"]
[EventDate "2023.10.22"]
[EventType "swiss"]
[EventCountry "ITA"]
[SourceTitle "playchess.com"]
[Source "ChessBase"]
[SourceQuality "1"]
[TimeControl "40/5400+30:1800+30"]

1. d4 {[%emt 0:00:20]} Nf6 {[%emt 0:00:20]} 2. c4 {[%emt 0:00:07]} g6 {[%emt 0:00:21]} 3. Nc3 {[%emt 0:00:13]} Bg7 {[%emt 0:03:13]} 4. e4 {[%emt 0:01:35]} d6 {[%emt 0:00:18]} 5. Nf3 {[%emt 0:06:07]} O-O {[%emt 0:00:18]} 6. Be2 {[%emt 0:00:06]} e5 {[%emt 0:00:17]} 7. d5 {[%emt 0:01:16]} a5 {[%emt 0:03:56]} 8. h3 {[%emt 1:24:46]} Na6 {[%emt 0:05:13]} 9. Bg5 {[%emt 0:00:00]} h6 {[%emt 0:03:56]} 10. Be3 {[%emt 0:00:00]} Nh5 {[%emt 0:04:55]} 11. Nd2 {[%emt 0:00:00]} Nf4 {[%emt 0:00:47]} 12. Bf1 {[%emt 0:00:00]} Nb4 {[%emt 0:02:59]} 13. Ndb1 {[%emt 0:00:00]} Bd7 {[%emt 0:05:32]} 14. g3 {[%emt 0:00:00]} Nh5 {[%emt 0:02:56]} 15. a3 {[%emt 0:00:00]} Na6 {[%emt 0:00:58]} 16. Be2 {[%emt 0:00:00]} Nf6 {[%emt 0:02:12]} 17. g4 {[%emt 0:00:00]} Nc5 {[%emt 0:07:46]} 18. Nd2 {[%emt 0:00:00]} a4 {[%emt 0:00:24]} 19. h4 {[%emt 0:00:00]} Nh7 {[%emt 0:03:19]} 20. Qc2 {[%emt 0:00:00]} Re8 {[%emt 0:01:47]} 21. O-O-O {[%emt 0:00:00]} Bf6 {[%emt 0:09:50]} 22. Kb1 {[%emt 0:00:00]} Bxh4 {[%emt 0:07:44]} 23. Nf3 {[%emt 0:00:00]} Bf6 {[%emt 0:02:32]} 24. Rxh6 {[%emt 0:00:00]} Bxg4 {[%emt 0:01:51]} 25. Rdh1 {[%emt 0:00:00]} Nf8 {[%emt 0:00:46]} 26. Qd1 {[%emt 0:00:00]} Bg7 {[%emt 0:01:20]} 27. R6h4 {[%emt 0:00:00]} Bh5 {[%emt 0:06:10]} 1/2-1/2

[Event "FIDE World Senior-50 CC 2023"]
[Site "Terrasini"]
[Date "2023.11.03"]
[Round "9.4"]
[White "Sturua, Zurab"]
[Black "Adams, Michael"]
[Result "1/2-1/2"]
[ECO "C48"]
[WhiteElo "2514"]
[BlackElo "2670"]
[Annotator "RC"]
[PlyCount "92"]
[EventDate "2023.10.22"]
[EventType "swiss"]
[EventCountry "ITA"]
[SourceTitle "playchess.com"]
[Source "ChessBase"]
[SourceQuality "1"]
[TimeControl "40/5400+30:1800+30"]

1. e4 {[%emt 0:00:10]} e5 {[%emt 0:00:07]} 2. Nf3 {[%emt 0:00:08]} Nc6 {[%emt 0:00:05]} 3. Nc3 {[%emt 0:00:17]} Nf6 {[%emt 0:00:34]} 4. Bb5 {[%emt 0:00:34]} Bc5 {[%emt 0:02:25]} 5. Nxe5 {[%emt 0:03:03]} Nxe5 {[%emt 0:00:10]} 6. d4 {[%emt 0:00:04]} Bd6 {[%emt 0:01:58]} 7. f4 {[%emt 0:01:05]} Nc6 {[%emt 0:04:22]} 8. e5 {[%emt 0:00:38]} Bb4 {[%emt 0:00:50]} 9. O-O {[%emt 0:03:45]} Bxc3 {[%emt 0:19:05]} 10. bxc3 {[%emt 0:00:25]} Ne4 {[%emt 0:00:22]} 11. Qg4 {[%emt 0:37:25]} g6 {[%emt 0:03:13]} 12. f5 {[%emt 0:07:48]} d5 {[%emt 0:00:19]} 13. exd6 {[%emt 0:04:12]} Bxf5 {[%emt 0:04:25]} 14. Qf3 {[%emt 0:11:33]} O-O {[%emt 0:10:19]} 15. dxc7 {[%emt 0:04:13]} Qd5 {[%emt 0:02:24]} 16. g4 {[%emt 0:02:40]} Be6 {[%emt 0:14:12]} 17. Bh6 {[%emt 0:01:11]} f5 {[%emt 0:10:22]} 18. Bxf8 {[%emt 0:04:18]} Rxf8 {[%emt 0:01:35]} 19. Bd3 {[%emt 0:01:24]} Ne5 {[%emt 0:06:02]} 20. Qg2 {[%emt 0:05:42]} Nxd3 {[%emt 0:00:50]} 21. gxf5 {[%emt 0:02:10]} Ndf2 {[%emt 0:06:32]} 22. fxe6 {[%emt 0:01:01]} Qxe6 {[%emt 0:00:08]} 23. d5 {[%emt 0:05:14]} Qd7 {[%emt 0:01:24]} 24. Rxf2 {[%emt 0:01:25]} Nxf2 {[%emt 0:00:03]} 25. d6 {[%emt 0:00:10]} Nh3+ {[%emt 0:04:26]} 26. Kh1 {[%emt 0:00:07]} Qxd6 {[%emt 0:00:43]} 27. Qxh3 {[%emt 0:00:30]} Qxc7 {[%emt 0:00:08]} 28. Qe6+ {[%emt 0:00:33]} Qf7 {[%emt 0:01:27]} 29. Qxf7+ {[%emt 0:01:54]} Kxf7 {[%emt 0:00:23]} 30. Rd1 {[%emt 0:00:20]} Ke6 {[%emt 0:00:27]} 31. Kg2 {[%emt 0:00:28]} Rc8 {[%emt 0:00:43]} 32. Re1+ {[%emt 0:00:49]} Kf6 {[%emt 0:01:01]} 33. Rf1+ {[%emt 0:00:07]} Kg7 {[%emt 0:00:38]} 34. Rf3 {[%emt 0:00:12]} Rc5 {[%emt 0:01:35]} 35. Rd3 {[%emt 0:00:53]} Kh6 {[%emt 0:00:28]} 36. a3 {[%emt 0:01:06]} b6 {[%emt 0:00:35]} 37. Kf2 {[%emt 0:00:23]} Rc7 {[%emt 0:02:50]} 38. Ke2 {[%emt 0:00:45]} Kg5 {[%emt 0:00:38]} 39. Kd2 {[%emt 0:00:06]} Kh4 {[%emt 0:01:04]} 40. c4 {[%emt 0:00:55]} Rxc4 {[%emt 0:00:38]} 41. Rd7 {[%emt 0:30:07]} h5 {[%emt 0:30:09]} 42. Rxa7 {[%emt 0:00:13]} Kh3 {[%emt 0:00:55]} 43. Ra6 {[%emt 0:00:19]} Kxh2 {[%emt 0:00:00]} 44. Rxb6 {[%emt 0:00:00]} g5 {[%emt 0:00:00]} 45. Rb5 {[%emt 0:00:00]} Rg4 {[%emt 0:00:00]} 46. a4 {[%emt 0:00:00]} h4 {[%emt 0:00:00]} 1/2-1/2

[Event "FIDE World Senior-50 CC 2023"]
[Site "Terrasini"]
[Date "2023.11.03"]
[Round "9.5"]
[White "Minasian, Artashes"]
[Black "Bischoff, Klaus"]
[Result "1/2-1/2"]
[ECO "B51"]
[WhiteElo "2462"]
[BlackElo "2473"]
[Annotator "RC"]
[PlyCount "50"]
[EventDate "2023.10.22"]
[EventType "swiss"]
[EventCountry "ITA"]
[SourceTitle "playchess.com"]
[Source "ChessBase"]
[SourceQuality "1"]
[TimeControl "40/5400+30:1800+30"]

1. e4 {[%emt 0:00:07]} c5 {[%emt 0:00:18]} 2. Nf3 {[%emt 0:00:07]} Nc6 {[%emt 0:00:41]} 3. Bb5 {[%emt 0:00:37]} d6 {[%emt 0:00:23]} 4. O-O {[%emt 0:01:27]} Bd7 {[%emt 0:00:39]} 5. c3 {[%emt 0:02:55]} Nf6 {[%emt 0:07:57]} 6. Re1 {[%emt 0:01:26]} a6 {[%emt 0:02:41]} 7. Bf1 {[%emt 0:06:04]} Bg4 {[%emt 0:04:04]} 8. d3 {[%emt 0:06:47]} e6 {[%emt 0:01:29]} 9. Nbd2 {[%emt 0:00:19]} Be7 {[%emt 0:01:55]} 10. h3 {[%emt 0:02:51]} Bh5 {[%emt 0:04:36]} 11. b3 {[%emt 0:11:08]} d5 {[%emt 0:01:17]} 12. Bb2 {[%emt 0:01:04]} Bg6 {[%emt 0:05:03]} 13. Nh4 {[%emt 0:04:26]} Qc7 {[%emt 0:04:03]} 14. Nxg6 {[%emt 0:05:07]} hxg6 {[%emt 0:01:10]} 15. Nf3 {[%emt 0:00:07]} dxe4 {[%emt 0:01:35]} 16. dxe4 {[%emt 0:00:08]} Nd7 {[%emt 0:00:11]} 17. Qe2 {[%emt 0:10:07]} Bf6 {[%emt 0:03:11]} 18. Qe3 {[%emt 0:01:47]} O-O {[%emt 0:10:04]} 19. Nh2 {[%emt 0:02:20]} Rfd8 {[%emt 0:00:49]} 20. Ng4 {[%emt 0:00:24]} Be7 {[%emt 0:00:09]} 21. e5 {[%emt 0:01:02]} b5 {[%emt 0:00:31]} 22. c4 {[%emt 0:05:34]} bxc4 {[%emt 0:00:58]} 23. bxc4 {[%emt 0:02:55]} Nd4 {[%emt 0:01:56]} 24. Bxd4 {[%emt 0:03:20]} cxd4 {[%emt 0:00:36]} 25. Qxd4 {[%emt 0:00:02]} Nf6 {[%emt 0:02:01]} 1/2-1/2

[Event "FIDE World Senior-50 CC 2023"]
[Site "Terrasini"]
[Date "2023.11.03"]
[Round "9.6"]
[White "Lima, Darcy"]
[Black "Godena, Michele"]
[Result "0-1"]
[ECO "A20"]
[WhiteElo "2416"]
[BlackElo "2441"]
[Annotator "RC"]
[PlyCount "95"]
[EventDate "2023.10.22"]
[EventType "swiss"]
[EventCountry "ITA"]
[SourceTitle "playchess.com"]
[Source "ChessBase"]
[SourceQuality "1"]
[TimeControl "40/5400+30:1800+30"]

1. c4 {[%emt 0:00:12]} e5 {[%emt 0:00:26]} 2. g3 {[%emt 0:00:29]} c6 {[%emt 0:01:29]} 3. Nf3 {[%emt 0:00:38]} e4 {[%emt 0:00:18]} 4. Nd4 {[%emt 0:00:07]} d5 {[%emt 0:00:18]} 5. cxd5 {[%emt 0:00:21]} Qxd5 {[%emt 0:00:33]} 6. Nc2 {[%emt 0:00:56]} Nf6 {[%emt 0:02:47]} 7. Nc3 {[%emt 0:01:18]} Qe5 {[%emt 0:02:25]} 8. Bg2 {[%emt 0:00:56]} Na6 {[%emt 0:04:30]} 9. Rb1 {[%emt 0:04:03]} Be7 {[%emt 0:32:01]} 10. b4 {[%emt 0:00:56]} O-O {[%emt 0:00:22]} 11. Bb2 {[%emt 0:05:28]} Qf5 {[%emt 0:04:34]} 12. a3 {[%emt 0:11:03]} Re8 {[%emt 0:00:24]} 13. Ne3 {[%emt 0:10:05]} Qg6 {[%emt 0:02:09]} 14. Qc2 {[%emt 0:07:04]} Bf8 {[%emt 0:01:35]} 15. O-O {[%emt 0:00:09]} Nc7 {[%emt 0:03:25]} 16. Na4 {[%emt 0:02:31]} Ncd5 {[%emt 0:05:08]} 17. Nxd5 {[%emt 0:09:08]} Nxd5 {[%emt 0:07:27]} 18. f4 {[%emt 0:04:59]} h5 {[%emt 0:07:47]} 19. Nc3 {[%emt 0:01:07]} h4 {[%emt 0:03:39]} 20. Nxd5 {[%emt 0:02:41]} cxd5 {[%emt 0:00:15]} 21. Qb3 {[%emt 0:01:05]} h3 {[%emt 0:09:23]} 22. Bh1 {[%emt 0:00:05]} Bg4 {[%emt 0:00:14]} 23. f5 {[%emt 0:04:03]} Bxf5 {[%emt 0:01:06]} 24. Qxd5 {[%emt 0:00:05]} Bg4 {[%emt 0:00:05]} 25. Rbe1 {[%emt 0:02:29]} Rad8 {[%emt 0:00:57]} 26. Qxb7 {[%emt 0:06:06]} Rxd2 {[%emt 0:00:38]} 27. Bc1 {[%emt 0:00:46]} Rd7 {[%emt 0:05:40]} 28. Qb5 {[%emt 0:00:54]} Qb6+ {[%emt 0:00:15]} 29. Qxb6 {[%emt 0:00:20]} axb6 {[%emt 0:00:02]} 30. Be3 {[%emt 0:01:40]} b5 {[%emt 0:00:30]} 31. Kf2 {[%emt 0:00:08]} f5 {[%emt 0:00:28]} 32. Rc1 {[%emt 0:00:47]} Ra8 {[%emt 0:00:45]} 33. Rc3 {[%emt 0:00:18]} Be7 {[%emt 0:00:31]} 34. Rfc1 {[%emt 0:01:25]} Kh7 {[%emt 0:03:22]} 35. Rc7 {[%emt 0:02:35]} Rxc7 {[%emt 0:00:04]} 36. Rxc7 {[%emt 0:00:03]} Bd8 {[%emt 0:00:23]} 37. Rb7 {[%emt 0:04:21]} Bf6 {[%emt 0:00:28]} 38. Bf3 {[%emt 0:01:58]} exf3 {[%emt 0:00:31]} 39. exf3 {[%emt 0:00:03]} Bh5 {[%emt 0:01:49]} 40. Rxb5 {[%emt 0:00:59]} Rxa3 {[%emt 0:00:33]} 41. g4 {[%emt 0:30:26]} Bh4+ {[%emt 0:30:28]} 42. Ke2 {[%emt 0:00:17]} Ra2+ {[%emt 0:00:00]} 43. Kd3 {[%emt 0:00:00]} Bf7 {[%emt 0:00:00]} 44. Rb7 {[%emt 0:00:00]} Bg6 {[%emt 0:00:00]} 45. Bd4 {[%emt 0:00:00]} fxg4+ {[%emt 0:00:00]} 46. Kc3 {[%emt 0:00:00]} gxf3 {[%emt 0:00:00]} 47. Rxg7+ {[%emt 0:00:00]} Kh6 {[%emt 0:00:00]} 48. Rg8 {[%emt 0:00:00]} 0-1

[Event "FIDE World Senior-50 CC 2023"]
[Site "Terrasini"]
[Date "2023.11.03"]
[Round "9.7"]
[White "Holzke, Frank"]
[Black "Paschall, William"]
[Result "1/2-1/2"]
[ECO "E16"]
[WhiteElo "2473"]
[BlackElo "2329"]
[Annotator "RC"]
[PlyCount "78"]
[EventDate "2023.10.22"]
[EventType "swiss"]
[EventCountry "ITA"]
[SourceTitle "playchess.com"]
[Source "ChessBase"]
[SourceQuality "1"]
[TimeControl "40/5400+30:1800+30"]

1. d4 {[%emt 0:00:07]} Nf6 {[%emt 0:00:32]} 2. c4 {[%emt 0:00:16]} e6 {[%emt 0:01:01]} 3. Nf3 {[%emt 0:00:14]} b6 {[%emt 0:01:14]} 4. g3 {[%emt 0:00:14]} Bb7 {[%emt 0:00:45]} 5. Bg2 {[%emt 0:00:16]} Bb4+ {[%emt 0:01:08]} 6. Bd2 {[%emt 0:00:23]} c5 {[%emt 0:01:04]} 7. O-O {[%emt 0:03:27]} O-O {[%emt 0:02:08]} 8. Bf4 {[%emt 0:06:15]} cxd4 {[%emt 0:05:37]} 9. Nxd4 {[%emt 0:00:21]} Bxg2 {[%emt 0:02:19]} 10. Kxg2 {[%emt 0:00:12]} Nc6 {[%emt 0:27:49]} 11. Nxc6 {[%emt 0:07:22]} dxc6 {[%emt 0:01:09]} 12. Qa4 {[%emt 0:00:43]} Qe7 {[%emt 0:06:36]} 13. a3 {[%emt 0:13:15]} Bd6 {[%emt 0:01:07]} 14. Bxd6 {[%emt 0:00:20]} Qxd6 {[%emt 0:00:09]} 15. Nc3 {[%emt 0:01:45]} Rfd8 {[%emt 0:05:48]} 16. Rfd1 {[%emt 0:01:03]} Qc7 {[%emt 0:00:27]} 17. b4 {[%emt 0:06:05]} c5 {[%emt 0:04:07]} 18. b5 {[%emt 0:08:49]} h5 {[%emt 0:01:44]} 19. Rxd8+ {[%emt 0:02:53]} Rxd8 {[%emt 0:00:34]} 20. Rd1 {[%emt 0:00:50]} Rd4 {[%emt 0:04:26]} 21. e3 {[%emt 0:02:36]} Rd7 {[%emt 0:04:26]} 22. Qc2 {[%emt 0:03:47]} Qd8 {[%emt 0:02:06]} 23. Rxd7 {[%emt 0:00:16]} Qxd7 {[%emt 0:00:09]} 24. h3 {[%emt 0:00:37]} g5 {[%emt 0:03:25]} 25. Kf1 {[%emt 0:07:18]} e5 {[%emt 0:02:54]} 26. Kg2 {[%emt 0:01:00]} Kg7 {[%emt 0:01:39]} 27. f3 {[%emt 0:03:32]} e4 {[%emt 0:04:35]} 28. Nxe4 {[%emt 0:02:45]} Nxe4 {[%emt 0:00:08]} 29. fxe4 {[%emt 0:00:55]} g4 {[%emt 0:00:47]} 30. hxg4 {[%emt 0:04:23]} hxg4 {[%emt 0:00:46]} 31. e5 {[%emt 0:05:49]} Qb7+ {[%emt 0:00:47]} 32. e4 {[%emt 0:00:22]} Qd7 {[%emt 0:00:52]} 33. Qc3 {[%emt 0:07:06]} Kg6 {[%emt 0:02:04]} 34. Qe3 {[%emt 0:01:09]} Qd1 {[%emt 0:04:38]} 35. Qf2 {[%emt 0:00:49]} Kg7 {[%emt 0:00:32]} 36. Kh2 {[%emt 0:04:23]} Kg8 {[%emt 0:00:41]} 37. Qe3 {[%emt 0:01:45]} Qc2+ {[%emt 0:01:05]} 38. Kg1 {[%emt 0:00:24]} Qxc4 {[%emt 0:02:44]} 39. Qg5+ {[%emt 0:00:22]} Kf8 {[%emt 0:00:44]} 1/2-1/2

[Event "FIDE World Senior-50 CC 2023"]
[Site "Terrasini"]
[Date "2023.11.03"]
[Round "9.8"]
[White "Degraeve, Jean-Marc"]
[Black "Vlassov, Nikolai"]
[Result "1-0"]
[ECO "B50"]
[WhiteElo "2479"]
[BlackElo "2283"]
[Annotator "RC"]
[PlyCount "81"]
[EventDate "2023.10.22"]
[EventType "swiss"]
[EventCountry "ITA"]
[SourceTitle "playchess.com"]
[Source "ChessBase"]
[SourceQuality "1"]
[TimeControl "40/5400+30:1800+30"]

1. e4 {[%emt 0:04:07]} c5 {[%emt 0:00:07]} 2. Nc3 {[%emt 0:00:45]} d6 {[%emt 0:00:34]} 3. Bc4 {[%emt 0:03:23]} Nf6 {[%emt 0:01:17]} 4. d3 {[%emt 0:00:11]} Nc6 {[%emt 0:02:22]} 5. Nf3 {[%emt 0:01:11]} g6 {[%emt 0:03:04]} 6. h3 {[%emt 0:10:27]} Bg7 {[%emt 0:01:59]} 7. Bf4 {[%emt 0:00:55]} e5 {[%emt 0:03:59]} 8. Bg5 {[%emt 0:00:30]} h6 {[%emt 0:01:07]} 9. Bxf6 {[%emt 0:00:31]} Bxf6 {[%emt 0:00:02]} 10. Nd5 {[%emt 0:03:44]} Be6 {[%emt 0:01:30]} 11. h4 {[%emt 0:01:54]} h5 {[%emt 0:11:18]} 12. Qd2 {[%emt 0:07:31]} Rb8 {[%emt 0:07:01]} 13. a4 {[%emt 0:02:00]} Kf8 {[%emt 0:05:14]} 14. Ng5 {[%emt 0:01:25]} Bxg5 {[%emt 0:01:04]} 15. hxg5 {[%emt 0:00:15]} Bxd5 {[%emt 0:01:53]} 16. Bxd5 {[%emt 0:00:25]} Kg7 {[%emt 0:02:05]} 17. f4 {[%emt 0:02:54]} f6 {[%emt 0:12:14]} 18. O-O {[%emt 0:04:43]} Rf8 {[%emt 0:07:26]} 19. f5 {[%emt 0:29:39]} fxg5 {[%emt 0:12:39]} 20. fxg6 {[%emt 0:01:08]} Rf4 {[%emt 0:14:56]} 21. g3 {[%emt 0:00:13]} Rf6 {[%emt 0:00:53]} 22. Rxf6 {[%emt 0:02:28]} Qxf6 {[%emt 0:00:02]} 23. Rf1 {[%emt 0:00:08]} Qxg6 {[%emt 0:00:05]} 24. Rf7+ {[%emt 0:01:21]} Kh8 {[%emt 0:02:21]} 25. Qf2 {[%emt 0:01:15]} g4 {[%emt 0:00:15]} 26. c3 {[%emt 0:09:32]} Qg5 {[%emt 0:00:40]} 27. Rf5 {[%emt 0:01:39]} Qh6 {[%emt 0:00:13]} 28. Bf7 {[%emt 0:02:17]} Qc1+ {[%emt 0:00:59]} 29. Kg2 {[%emt 0:00:16]} Ne7 {[%emt 0:00:20]} 30. Rxh5+ {[%emt 0:01:34]} Kg7 {[%emt 0:00:01]} 31. Rh4 {[%emt 0:00:17]} Qd1 {[%emt 0:01:17]} 32. Be6 {[%emt 0:02:35]} Qf3+ {[%emt 0:02:40]} 33. Qxf3 {[%emt 0:00:08]} gxf3+ {[%emt 0:00:01]} 34. Kxf3 {[%emt 0:00:09]} b5 {[%emt 0:00:13]} 35. axb5 {[%emt 0:00:21]} Rxb5 {[%emt 0:00:01]} 36. Rh2 {[%emt 0:00:26]} Kf6 {[%emt 0:01:55]} 37. Bc4 {[%emt 0:00:14]} Ra5 {[%emt 0:00:06]} 38. Rh6+ {[%emt 0:01:47]} Ng6 {[%emt 0:00:02]} 39. Rh7 {[%emt 0:00:06]} Ra1 {[%emt 0:00:49]} 40. Kg4 {[%emt 0:00:49]} Rb1 {[%emt 0:00:30]} 41. Rf7# {[%emt 0:31:02]} 1-0

[Event "FIDE World Senior-50 CC 2023"]
[Site "Terrasini"]
[Date "2023.11.03"]
[Round "9.9"]
[White "Matamoros Franco, Carlos S."]
[Black "Nadanian, Ashot"]
[Result "1/2-1/2"]
[ECO "E06"]
[WhiteElo "2455"]
[BlackElo "2279"]
[Annotator "RC"]
[PlyCount "108"]
[EventDate "2023.10.22"]
[EventType "swiss"]
[EventCountry "ITA"]
[SourceTitle "playchess.com"]
[Source "ChessBase"]
[SourceQuality "1"]
[TimeControl "40/5400+30:1800+30"]

1. Nf3 {[%emt 0:00:04]} d5 {[%emt 0:00:24]} 2. g3 {[%emt 0:00:23]} e6 {[%emt 0:01:27]} 3. Bg2 {[%emt 0:01:55]} Nf6 {[%emt 0:00:23]} 4. O-O {[%emt 0:00:36]} Be7 {[%emt 0:01:09]} 5. c4 {[%emt 0:02:00]} O-O {[%emt 0:04:58]} 6. d4 {[%emt 0:01:40]} b6 {[%emt 0:07:17]} 7. cxd5 {[%emt 0:02:13]} exd5 {[%emt 0:00:06]} 8. Nc3 {[%emt 0:01:20]} c6 {[%emt 0:05:48]} 9. Bf4 {[%emt 0:06:34]} Re8 {[%emt 0:04:07]} 10. Re1 {[%emt 0:08:34]} Bf8 {[%emt 0:01:17]} 11. Bg5 {[%emt 0:02:57]} h6 {[%emt 0:06:56]} 12. Bxf6 {[%emt 0:01:25]} Qxf6 {[%emt 0:00:09]} 13. e4 {[%emt 0:04:00]} dxe4 {[%emt 0:07:28]} 14. Ne5 {[%emt 0:08:56]} Be6 {[%emt 0:10:21]} 15. Nxe4 {[%emt 0:15:34]} Qd8 {[%emt 0:00:18]} 16. Nc3 {[%emt 0:00:08]} Nd7 {[%emt 0:21:04]} 17. Nxc6 {[%emt 0:06:31]} Qf6 {[%emt 0:00:09]} 18. d5 {[%emt 0:25:17]} Bf5 {[%emt 0:00:22]} 19. d6 {[%emt 0:00:28]} Rac8 {[%emt 0:16:06]} 20. Nxa7 {[%emt 0:00:49]} Rxe1+ {[%emt 0:00:16]} 21. Qxe1 {[%emt 0:00:02]} Rc5 {[%emt 0:00:09]} 22. Nab5 {[%emt 0:00:30]} Bd3 {[%emt 0:03:04]} 23. a4 {[%emt 0:02:15]} Re5 {[%emt 0:02:25]} 24. Qd2 {[%emt 0:02:25]} Bc4 {[%emt 0:00:10]} 25. Rc1 {[%emt 0:04:03]} Qe6 {[%emt 0:00:47]} 26. f4 {[%emt 0:00:44]} Rh5 {[%emt 0:02:45]} 27. Re1 {[%emt 0:00:09]} Qf6 {[%emt 0:00:19]} 28. Bf3 {[%emt 0:01:16]} Re5 {[%emt 0:00:53]} 29. fxe5 {[%emt 0:00:30]} Qxf3 {[%emt 0:00:06]} 30. Qf4 {[%emt 0:00:40]} Qc6 {[%emt 0:00:28]} 31. Qd4 {[%emt 0:00:54]} Be6 {[%emt 0:00:25]} 32. Nc7 {[%emt 0:00:18]} Bb3 {[%emt 0:00:32]} 33. N3d5 {[%emt 0:00:31]} Kh8 {[%emt 0:01:12]} 34. Rf1 {[%emt 0:00:36]} Nxe5 {[%emt 0:00:31]} 35. Ne7 {[%emt 0:01:00]} Nf3+ {[%emt 0:00:27]} 36. Rxf3 {[%emt 0:00:01]} Qxf3 {[%emt 0:04:12]} 37. Nb5 {[%emt 0:00:29]} Be6 {[%emt 0:00:00]} 38. Nc3 {[%emt 0:00:20]} Bh3 {[%emt 0:00:00]} 39. Qf2 {[%emt 0:00:22]} Qh5 {[%emt 0:00:00]} 40. Qxb6 {[%emt 0:00:21]} Qe5 {[%emt 0:01:21]} 41. Kf2 {[%emt 0:06:01]} Qf6+ {[%emt 0:00:32]} 42. Ke1 {[%emt 0:00:39]} Bxe7 {[%emt 0:03:36]} 43. dxe7 {[%emt 0:00:00]} Qxb6 {[%emt 0:00:08]} 44. e8=Q+ {[%emt 0:00:00]} Kh7 {[%emt 0:00:04]} 45. Qe2 {[%emt 0:00:56]} Qg1+ {[%emt 0:01:27]} 46. Kd2 {[%emt 0:27:04]} f5 {[%emt 0:03:47]} 47. Kc2 {[%emt 0:00:00]} Bf1 {[%emt 0:06:03]} 48. Qd2 {[%emt 0:00:00]} Bg2 {[%emt 0:02:07]} 49. h4 {[%emt 0:00:00]} Be4+ {[%emt 0:02:27]} 50. Nxe4 {[%emt 0:00:00]} fxe4 {[%emt 0:00:04]} 51. Qf4 {[%emt 0:00:00]} Qd4 {[%emt 0:01:57]} 52. Qf5+ {[%emt 0:00:00]} Kh8 {[%emt 0:00:45]} 53. Qf8+ {[%emt 0:03:30]} Kh7 {[%emt 0:00:06]} 54. Qf5+ {[%emt 0:00:00]} Kh8 {[%emt 0:00:06]} 1/2-1/2

[Event "FIDE World Senior-50 CC 2023"]
[Site "Terrasini"]
[Date "2023.11.03"]
[Round "9.10"]
[White "Mohr, Georg"]
[Black "Naimanov, Rinat"]
[Result "1-0"]
[ECO "A28"]
[WhiteElo "2430"]
[BlackElo "1377"]
[Annotator "RC"]
[PlyCount "65"]
[EventDate "2023.10.22"]
[EventType "swiss"]
[EventCountry "ITA"]
[SourceTitle "playchess.com"]
[Source "ChessBase"]
[SourceQuality "1"]
[TimeControl "40/5400+30:1800+30"]

1. c4 {[%emt 0:03:27]} e5 {[%emt 0:00:06]} 2. Nc3 {[%emt 0:00:13]} Nf6 {[%emt 0:00:07]} 3. Nf3 {[%emt 0:00:43]} Nc6 {[%emt 0:00:07]} 4. e3 {[%emt 0:01:49]} Bb4 {[%emt 0:00:48]} 5. Qc2 {[%emt 0:01:08]} Bxc3 {[%emt 0:04:34]} 6. Qxc3 {[%emt 0:00:58]} e4 {[%emt 0:00:19]} 7. Nd4 {[%emt 0:00:33]} O-O {[%emt 0:02:22]} 8. Nxc6 {[%emt 0:08:09]} dxc6 {[%emt 0:12:12]} 9. b3 {[%emt 0:00:12]} Re8 {[%emt 0:03:09]} 10. Bb2 {[%emt 0:00:09]} a5 {[%emt 0:03:48]} 11. Be2 {[%emt 0:08:51]} Qe7 {[%emt 0:04:42]} 12. a3 {[%emt 0:06:36]} Qf8 {[%emt 0:07:12]} 13. O-O {[%emt 0:06:16]} Bf5 {[%emt 0:10:15]} 14. f3 {[%emt 0:01:39]} Re6 {[%emt 0:02:02]} 15. Rf2 {[%emt 0:11:19]} h5 {[%emt 0:03:46]} 16. Raf1 {[%emt 0:03:06]} Bg6 {[%emt 0:05:31]} 17. Bd1 {[%emt 0:02:21]} h4 {[%emt 0:16:03]} 18. Bc2 {[%emt 0:03:11]} exf3 {[%emt 0:08:06]} 19. Bxg6 {[%emt 0:02:36]} fxg6 {[%emt 0:00:37]} 20. gxf3 {[%emt 0:01:16]} h3 {[%emt 0:01:44]} 21. Kh1 {[%emt 0:05:27]} Nh5 {[%emt 0:01:59]} 22. Qd4 {[%emt 0:01:32]} Qf6 {[%emt 0:02:08]} 23. Qg4 {[%emt 0:06:25]} Qf5 {[%emt 0:02:23]} 24. Rg1 {[%emt 0:00:59]} Rae8 {[%emt 0:02:55]} 25. Bc3 {[%emt 0:03:59]} b6 {[%emt 0:01:15]} 26. Qh4 {[%emt 0:03:01]} c5 {[%emt 0:02:01]} 27. Rff1 {[%emt 0:01:24]} Kf7 {[%emt 0:01:04]} 28. Rg5 {[%emt 0:01:14]} Qd3 {[%emt 0:00:24]} 29. Rfg1 {[%emt 0:00:43]} Qe2 {[%emt 0:01:32]} 30. Qxh3 {[%emt 0:00:48]} a4 {[%emt 0:00:40]} 31. Rxh5 {[%emt 0:00:42]} axb3 {[%emt 0:00:24]} 32. Rh7 {[%emt 0:02:01]} Rg8 {[%emt 0:00:12]} 33. Qf1 {[%emt 0:00:38]} 1-0